{"text_format":"1","workbook":"xlsx","n_sheets":31,"sheets":["Gra_Obj","Sisukord","Shape","Omadused","Meetodid","Anima","Hüpe_1","Lennuk_ufod","Suursõit","Protseduurid","On_fun","Liigu","Liigu_XY","Liikumised","Penaltid","Hüpe_2","H_robi","H_M","Liigu_OB","H_auto_R1","H_auto_R2","H_Takistusriba","Jalka","Kald","Lisamine","D_Lisa","Kujud","Prorseduurid","Maja","Kolm_Ellips","Sheet1"],"not_rendered":{"charts":3,"images":121,"macros":1,"external_links":0,"defined_names":88,"comments":15,"pivot_tables":0},"unopened":[],"bounds":{"document_bytes":16777216,"sheet_cells":100000,"rows_first":2000,"rows_last":500,"rows_between":2000,"halvings":0,"cell_chars":16384,"cell_head_chars":4096},"cells_cut":0,"cells_raw":0,"read":"whole","date_system":"1900"}

{"sheet":"Gra_Obj","index":0,"n_rows":26,"n_cols":16,"rows_kept":26,"cut":false,"hidden":false,"merged":[[25,6,25,7]]}
[]
[null,"Graafika  VBAs"]
[]
[null,"Kõike töölehepinnal asuvaid objekte käsitletakse kujunditena"]
[null," (põhiklassid Shape ja Shapes)"]
[]
[null,"Kujundite tüübid"]
[]
[null,"Graafikaobjektid - MS Drawing abil tehtud kujundid",null,null,null,null,null,null,null,null,null,null,"Diagrammid (ChartObjects)"]
[]
[null,null,null,null,null,null,null,null,null,null,null,null,null,null,23,56]
[null,null,null,null,null,null,null,null,null,null,null,null,null,null,29,32]
[null,null,null,null,null,null,null,null,null,null,null,null,null,null,27,13]
[null,"Pildid (Picture) - imporditud pildid",null,null,null,null,null,null,null,null,"kask",null,null,null,45,35]
[null,null,null,null,null,null,null,null,null,null,"kuusk",null,null,null,12,41]
[null,null,null,null,null,null,null,null,null,null,"mänd"]
[null,null,null,null,null,null,null,null,null,null,"paju"]
[null,null,null,null,null,null,null,null,null,null,"saar"]
[null,null,null,null,null,null,null,null,null,null,"tamm"]
[null,"Ohjurid (Controls)"]
[]
[]
[]
[]
[null,null,null,null,246]
[null,null,null,null,null,null,"saar"]

{"sheet":"Sisukord","index":1,"n_rows":24,"n_cols":2,"rows_kept":24,"cut":false,"hidden":false,"merged":[]}
[]
[]
[null,"Klassid Shapes ja Shape "]
[null,"Omadused"]
[null,"Meetodid"]
[null,"Animatsiooni üldpõhimõtted"]
[null,"\"Vettehüpped 1\""]
[null,"Mitme objekti üheaegne liikumine. Lennuk-ufo"]
[null,"Protseduuridˇtegevuste ja liikumiste määramiseks objektidega"]
[null,"Funktsioonid On_Sees ja On_Puude"]
[null,"Protseduurid Liigu ja Osuta"]
[null,"Harjutus Penaltid"]
[null,"Paralleelsed tegevused II"]
[null,"Kujundi liikumine koordinaatidega määratud punkti "]
[null,"Erinevate liikumiste näited"]
[null,"Näide \"Vettehüpped 2\""]
[null,"Näide \"Kirbutsirkus\""]
[null,"Kujundi liikumine teise objekti juurde"]
[null,"Harjutus \"Auto ringliiklus 1\""]
[null,"Harjutus. \"Auto ringliiklus 2\""]
[null,"Liikumine parabooli järgi"]
[null,"Harjutus \"Karistuslöögid\""]
[null,"Kaldu visatud keha liikumine"]
[null,"Graafikaobjektide lisamine"]

{"sheet":"Shape","index":2,"n_rows":2,"n_cols":1,"rows_kept":2,"cut":false,"hidden":false,"merged":[]}
[]
["Graafikaobjektid. Klass Shape ja sellega seotud põhiklassid"]

{"sheet":"Omadused","index":3,"n_rows":32,"n_cols":10,"rows_kept":32,"cut":false,"hidden":false,"merged":[]}
["(0, 0)"]
[null,"Shape-objektide põhiomadused"]
[]
[null,"Omadus","Nimi/Viitamine","Väärtused"]
[null,"Nimi","Name","ufo","cm"]
[null,"Vasak serv","Left",196.14134216308594,{"$f":"D6*2.54/72","v":6.9194306818644211}]
[null,"Ülemine serv","Top",103.58669281005859,{"$f":"D7*2.54/72","v":3.6543083296881784}]
[null,"Laius","Width",139.12968444824219,4.9081860902574332]
[null,"Kõrgus","Height",62.47882080078125,2.2041139560275607]
[null,"Pöörde nurk","Rotation",150.60285949707031]
[null,"Täitevärv","Fill.ForeColor.SchemeColor",43]
[null,"Joone värvus","Line.ForeColor.SchemeColor",22]
[null,"Joone paksus","Line.Weight",3.9861416816711426,null,null,null,null,null,56]
[null,"Nähtavus","Visible",-1]
[]
[null,null,null,null,null,null,null,6]
[]
[]
[]
[]
[]
[]
[]
[]
[]
[null,null,null,null,null,null,185]
[]
[]
[null,null,null,null,null,null,196]
[]
[]
[null,null,null,null,null,null,138]

{"sheet":"Meetodid","index":4,"n_rows":21,"n_cols":9,"rows_kept":21,"cut":false,"hidden":false,"merged":[]}
[]
[]
[null,"Shape-objekti mõned meetodid"]
[]
[null,"Meetod","Selgitus",null,"Kuju koordinaatide ja pöörde muutmine"]
[null,"IncrementLeft dx","Vasaku serva juurdekasv","dx",9,null,null,407,"X"]
[null,"IncrementTop dy","Ülemise serva juurdekasv","dy",10,null,null,29.25,"Y"]
[null,"IncrementRotation dp","Pöördenurga juurdekasv","dp",0,null,null,0,"nurk"]
[null,null,null,null,"Kuju mõõtmete muutmine"]
[null,"ScaleHeight k, False","Kõrguse skaleerimine","k",1]
[null,"ScaleWidth k, False","Laiuse skaleerimine"]
[]
[null,"Select","Valimine (aktiveerimine)",null,"Oval 76"]
[]
[null,"Copy","Kopeerimine"]
[null,"Duplicate","Dubleerimine"]
[]
[null,"Cut","Lõikamine"]
[null,"Delete","Eemaldamine"]
[]
[null,"Flip 0 | 1","Peegeldus\n0 - horis., 1 - vertik"]

{"sheet":"Anima","index":5,"n_rows":3,"n_cols":3,"rows_kept":3,"cut":false,"hidden":false,"merged":[]}
[null,null,"Demo"]
[]
[null,"Objektide liikumise ja animatsiooni üldised põhimõtted"]

{"sheet":"Hüpe_1","index":6,"n_rows":2,"n_cols":2,"rows_kept":2,"cut":false,"hidden":false,"merged":[]}
[]
[null,"Vettehüpped"]

{"sheet":"Lennuk_ufod","index":7,"n_rows":10,"n_cols":12,"rows_kept":10,"cut":false,"hidden":false,"merged":[]}
[null,null,null,null,null,null,null,null,null,"tabas","aeg","max_aeg"]
[null,null,"Paralleelsete tegevuste kirjeldamine VBAs",null,null,null,null,null,null,7,45,45]
[null,null,"Lennuk, ufod ning veski ka",null,null,null,"Scratch"]
[]
[]
[]
[null,"Objektid ja andmed",null,null,"Protseduurid",null,null,"Protseduur Lend",null,null,"Protseduur Tuld"]
[]
[null,"Mooduli tasemega andmed",null,null,null,null,null,"Protseduur Algseis"]
[null,null,null,null,null,null,null,null,null,null,"Protseduur Kukkumine"]

{"sheet":"Suursõit","index":8,"n_rows":20,"n_cols":8,"rows_kept":20,"cut":false,"hidden":false,"merged":[[15,7,15,8]]}
[]
[]
[]
[]
[]
[]
[]
[]
[]
[]
[]
[]
[]
[]
[]
[null,null,null,null,null,null,null,"Demo Scratch"]
[]
[]
[null,null,"ringe","aeg_1","aeg_2","aeg_3","Paku võitja","võitja"]
[null,null,3,2.796875,2.85546875,2.78515625,"auto_2","auto_3"]

{"sheet":"Protseduurid","index":9,"n_rows":7,"n_cols":3,"rows_kept":7,"cut":false,"hidden":false,"merged":[]}
[]
[]
[]
[]
[]
[]
[null,null,"Protseduuridˇtegevuste ja liikumiste määramiseks objektidega"]

{"sheet":"On_fun","index":10,"n_rows":36,"n_cols":13,"rows_kept":36,"cut":false,"hidden":false,"merged":[]}
[]
[null,"Funktsioon On_Sees(O1, O2) - on tõene, kui objekt O1 (väiksem) on O2 sees"]
[null,"Funktsioon On_Puude(O1, O2) - on tõene, kui objektidel O1 ja O2 on ühisosa",null,null,null,null,null,null,null,null,null,null,"käes"]
[]
[null,"Objektid O1 ja O2 võivad olla kujundid (Shape) või lahtriplokid (Range)"]
[]
[null,"Üks kujund teise sees",null,null,null,null,"Kujunditel on ühisosa"]
[null,null,null,null,"O1 ",null,null,null,null,"O1-l"]
[]
[null,null,null,null,"O2",null,null,null,null,"O2 - ga"]
[null,null,null,null,"sees"]
["Lahter piirkonna (lahtriploki) sees",null,null,null,null,"Kujundil on ühisosa piirkonnaga"]
[null,null,null,null,"O1 ",null,null,null,null,"O1-l"]
[null,null,"O1"]
[null,null,null,null,"O2",null,null,null,null,"O2 - ga"]
[null,null,null,null,"sees"]
[null,"Kujund piirkonna sees "]
[null,null,null,null,"O1 "]
[]
[null,null,null,null,"O2"]
[null,null,null,null,"sees"]
[null,"Lahter kujundi sees (all)"]
[]
[null,null,null,null,"O1 "]
[null,null,"O1"]
[null,null,null,null,"O2"]
[null,null,null,null,"sees"]
[]
[]
[]
[]
[]
[]
[]
[null,"sees","puude"]
[null,4,8]

{"sheet":"Liigu","index":11,"n_rows":19,"n_cols":3,"rows_kept":19,"cut":false,"hidden":false,"merged":[]}
[]
[]
[null,"Protseduur Liigu (kuju, h)"]
[]
[]
[]
[]
[null,"h","nurk"]
[null,10,0]
[]
[]
[]
[]
[]
[]
[]
[]
[]
[null,"Protseduur Osuta (kuju, objekt)"]

{"sheet":"Liigu_XY","index":12,"n_rows":11,"n_cols":9,"rows_kept":11,"cut":false,"hidden":false,"merged":[]}
[]
["Protseduur Liigu_XY(kuju, x, y, d [,pp=0.01]  [,kt=1]  [,dp=0])"]
[]
[]
[]
[]
[]
[]
[null,"punkt",null,null,null,null,null,"kuju"]
[null,"x","y","d","pp","kt","dp","xk","yk"]
[null,313,395,5,0.01,1,0,176,220]

{"sheet":"Liikumised","index":13,"n_rows":2,"n_cols":3,"rows_kept":2,"cut":false,"hidden":false,"merged":[]}
[]
[null,null,"Liikumiste demod"]

{"sheet":"Penaltid","index":14,"n_rows":31,"n_cols":29,"rows_kept":31,"cut":false,"hidden":false,"merged":[[1,24,1,25],[2,15,2,16],[2,17,2,18],[2,19,2,20],[2,22,2,23],[2,24,2,25],[1,15,1,16],[1,17,1,18],[1,19,1,20],[1,22,1,23]]}
[]
[null,null,null,null,null,null,null,null,null,null,null,null,null,null,null,"lööke",null,"käes",null,"tabas",null,null,"m_aeg",null,"aeg"]
[null,null,"Penaltid",null,null,null,null,null,null,null,null,null,null,null,null,13,null,5,null,4,null,null,45,null,51.875]
[]
[]
[]
[]
[]
[]
[]
[]
[]
[]
[]
[]
[]
[]
[]
[]
[]
[]
[]
[]
[]
[]
[]
[]
[]
[]
[]
[null,null,null,null,null,null,null,null,null,null,null,null,null,null,null,null,null,null,null,null,null,null,null,null,null,null,null,null," "]

{"sheet":"Hüpe_2","index":15,"n_rows":3,"n_cols":2,"rows_kept":3,"cut":false,"hidden":false,"merged":[]}
[]
[null,"Vettehüpped. Demo"]
[null,"Liikumise kirjeldamiseks kasutatakse protseduuri Liigu_XY()"]

{"sheet":"H_robi","index":16,"n_rows":3,"n_cols":2,"rows_kept":3,"cut":false,"hidden":false,"merged":[]}
[]
[]
[null,"Kirbutsirkus. Tegevused objektide kogumikuga"]

{"sheet":"H_M","index":17,"n_rows":4,"n_cols":2,"rows_kept":4,"cut":false,"hidden":true,"merged":[]}
[]
[]
[]
[null,"Harjutus M"]

{"sheet":"Liigu_OB","index":18,"n_rows":3,"n_cols":2,"rows_kept":3,"cut":false,"hidden":false,"merged":[]}
[]
[]
[null,"Protseduur Liigu_OB(kuju, objekt, d [, pp=0.01]  [, kt=1] [, dp=0])"]

{"sheet":"H_auto_R1","index":19,"n_rows":3,"n_cols":2,"rows_kept":3,"cut":false,"hidden":false,"merged":[]}
[]
[]
[null,"Auto ringliiklus"]

{"sheet":"H_auto_R2","index":20,"n_rows":3,"n_cols":2,"rows_kept":3,"cut":false,"hidden":false,"merged":[]}
[]
[]
[null,"Auto ringliiklus"]

{"sheet":"H_Takistusriba","index":21,"n_rows":3,"n_cols":23,"rows_kept":3,"cut":false,"hidden":false,"merged":[]}
[]
[null,"Liikumine parabooli järgi",null,null,null,null,null,null,null,null,null,null,null,null,null,null,null,null,null,null,"L","f","h"]
[null,null,null,null,null,null,null,null,null,null,null,null,null,null,null,null,null,null,null,null,8,4,0.2]

{"sheet":"Jalka","index":22,"n_rows":32,"n_cols":8,"rows_kept":32,"cut":false,"hidden":false,"merged":[]}
[]
[]
[null,"Karistuslöögid II. Demo"]
[]
[]
[]
[]
[null,null,null,null,null,null,"lööke","tabas"]
[null,null,null,null,null,null,14,3]
[]
[]
[]
[]
[]
[]
[]
[]
[]
[]
[]
[]
[]
[]
[]
[]
[]
[]
[]
[]
[]
[null,null,null,null,null,null,"L, cm","f, cm"]
[null,null,null,null,null,null,19.837719142000442,2.113228227857133]

{"sheet":"Kald","index":23,"n_rows":112,"n_cols":20,"rows_kept":112,"cut":false,"hidden":false,"merged":[]}
[]
[null,"Protseduur Liigu_VN(kuju As Shape, V0, alfa [, g = 10], [, pp=0.01] [, mx] [, my])"]
[null,"Keha liikumine antud algkiiruse (V0 - m/sek) ja nurga (alfa - grad) "]
[null,"g - gravitatsioon (m/sek2), pp - paus, mx, my - mastaabi tegurid (punkte pikkuse ühikule)"]
[null,"kiirus (V0)","nurk","g","pp","mx","my",null,"tm","xm"]
[null,30,45,10,0.01,10,10,null,{"$f":"2*kiirus*SIN(RADIANS(nurk))/g","v":4.2426406871192848},{"$f":"kiirus*COS(RADIANS(nurk))*tm","v":90}]
[]
[null,null,null,null,null,null,null,null,null,null,null,null,null,null,null,null,null,"samm",null,"jaotisi"]
[null,null,null,null,null,null,null,null,null,null,null,null,null,null,null,null,null,{"$f":"tm/jaotisi","v":4.2426406871192847E-2},null,100]
[]
[null,null,null,null,null,null,null,null,null,null,null,null,null,null,null,null,null,"t","x","y"]
[null,null,null,null,null,null,null,null,null,null,null,null,null,null,null,null,null,0,{"$f":"kiirus*COS(RADIANS(nurk))*t","v":0},{"$f":"kiirus*SIN(RADIANS(nurk))*t-g*t*t/2","v":0}]
[null,null,null,null,null,null,null,null,null,null,null,null,null,null,null,null,null,{"$f":"R12+samm","v":4.2426406871192847E-2},0.89999999999999991,0.89099999999999979]
[null,null,null,null,null,null,null,null,null,null,null,null,null,null,null,null,null,8.4852813742385694E-2,1.7999999999999998,1.7639999999999996]
[null,null,null,null,null,null,null,null,null,null,null,null,null,null,null,null,null,0.12727922061357855,2.6999999999999997,2.6189999999999993]
[null,null,null,null,null,null,null,null,null,null,null,null,null,null,null,null,null,0.16970562748477139,3.5999999999999996,3.4559999999999991]
[null,null,null,null,null,null,null,null,null,null,null,null,null,null,null,null,null,0.21213203435596423,4.4999999999999991,4.2749999999999995]
[null,null,null,null,null,null,null,null,null,null,null,null,null,null,null,null,null,0.2545584412271571,5.3999999999999995,5.0759999999999987]
[null,null,null,null,null,null,null,null,null,null,null,null,null,null,null,null,null,0.29698484809834996,6.3000000000000007,5.8589999999999991]
[null,null,null,null,null,null,null,null,null,null,null,null,null,null,null,null,null,0.33941125496954283,7.2000000000000011,6.6239999999999988]
[null,null,null,null,null,null,null,null,null,null,null,null,null,null,null,null,null,0.3818376618407357,8.1000000000000014,7.3709999999999996]
[null,null,null,null,null,null,null,null,null,null,null,null,null,null,null,null,null,0.42426406871192857,9.0000000000000018,8.1]
[null,null,null,null,null,null,null,null,null,null,null,null,null,null,null,null,null,0.46669047558312143,9.9000000000000021,8.8109999999999999]
[null,null,null,null,null,null,null,null,null,null,null,null,null,null,null,null,null,0.5091168824543143,10.800000000000002,9.5040000000000013]
[null,null,null,null,null,null,null,null,null,null,null,null,null,null,null,null,null,0.55154328932550711,11.700000000000001,10.178999999999998]
[null,null,null,null,null,null,null,null,null,null,null,null,null,null,null,null,null,0.59396969619669993,12.600000000000001,10.835999999999999]
[null,null,null,null,null,null,null,null,null,null,null,null,null,null,null,null,null,0.63639610306789274,13.5,11.474999999999998]
[null,null,null,null,null,null,null,null,null,null,null,null,null,null,null,null,null,0.67882250993908555,14.399999999999999,12.095999999999997]
[null,null,null,null,null,null,null,null,null,null,null,null,null,null,null,null,null,0.72124891681027836,15.299999999999999,12.698999999999996]
[null,null,null,null,null,null,null,null,null,null,null,null,null,null,null,null,null,0.76367532368147117,16.199999999999996,13.283999999999997]
[null,null,null,null,null,null,null,null,null,null,null,null,null,null,null,null,null,0.80610173055266399,17.099999999999998,13.850999999999996]
[null,null,null,null,null,null,null,null,null,null,null,null,null,null,null,null,null,0.8485281374238568,17.999999999999996,14.399999999999995]
[null,null,null,null,null,null,null,null,null,null,null,null,null,null,null,null,null,0.89095454429504961,18.899999999999995,14.930999999999994]
[null,null,null,null,null,null,null,null,null,null,null,null,null,null,null,null,null,0.93338095116624242,19.799999999999994,15.443999999999992]
[null,null,null,null,null,null,null,null,null,null,null,null,null,null,null,null,null,0.97580735803743524,20.699999999999992,15.938999999999993]
[null,null,null,null,null,null,null,null,null,null,null,null,null,null,null,null,null,1.0182337649086282,21.599999999999994,16.415999999999993]
[null,null,null,null,null,null,null,null,null,null,null,null,null,null,null,null,null,1.060660171779821,22.499999999999993,16.874999999999993]
[null,null,null,null,null,null,null,null,null,null,null,null,null,null,null,null,null,1.1030865786510138,23.399999999999995,17.315999999999992]
[null,null,null,null,null,null,null,null,null,null,null,null,null,null,null,null,null,1.1455129855222066,24.299999999999994,17.738999999999997]
[null,null,null,null,null,null,null,null,null,null,null,null,null,null,null,null,null,1.1879393923933994,25.199999999999992,18.143999999999995]
[null,null,null,null,null,null,null,null,null,null,null,null,null,null,null,null,null,1.2303657992645922,26.099999999999991,18.530999999999992]
[null,null,null,null,null,null,null,null,null,null,null,null,null,null,null,null,null,1.272792206135785,26.999999999999989,18.899999999999991]
[null,null,null,null,null,null,null,null,null,null,null,null,null,null,null,null,null,1.3152186130069778,27.899999999999988,19.250999999999991]
[null,null,null,null,null,null,null,null,null,null,null,null,null,null,null,null,null,1.3576450198781707,{"$f":"kiirus*COS(RADIANS(nurk))*t","v":28.79999999999999},{"$f":"kiirus*SIN(RADIANS(nurk))*t-g*t*t/2","v":19.583999999999989}]
[null,null,null,null,null,null,null,null,null,null,null,null,null,null,null,null,null,{"$f":"R44+samm","v":1.4000714267493635},29.699999999999989,19.89899999999999]
[null,null,null,null,null,null,null,null,null,null,null,null,null,null,null,null,null,1.4424978336205563,30.599999999999987,20.195999999999991]
[null,null,null,null,null,null,null,null,null,null,null,null,null,null,null,null,null,1.4849242404917491,31.499999999999986,20.474999999999994]
[null,null,null,null,null,null,null,null,null,null,null,null,null,null,null,null,null,1.5273506473629419,32.399999999999984,20.73599999999999]
[null,null,null,null,null,null,null,null,null,null,null,null,null,null,null,null,null,1.5697770542341347,33.299999999999983,20.978999999999989]
[null,null,null,null,null,null,null,null,null,null,null,null,null,null,null,null,null,1.6122034611053275,34.199999999999982,21.203999999999994]
[null,null,null,null,null,null,null,null,null,null,null,null,null,null,null,null,null,1.6546298679765203,35.09999999999998,21.410999999999994]
[null,null,null,null,null,null,null,null,null,null,null,null,null,null,null,null,null,1.6970562748477132,35.999999999999979,21.599999999999994]
[null,null,null,null,null,null,null,null,null,null,null,null,null,null,null,null,null,1.739482681718906,36.899999999999984,21.770999999999994]
[null,null,null,null,null,null,null,null,null,null,null,null,null,null,null,null,null,1.7819090885900988,37.799999999999983,21.923999999999992]
[null,null,null,null,null,null,null,null,null,null,null,null,null,null,null,null,null,1.8243354954612916,38.699999999999982,22.058999999999994]
[null,null,null,null,null,null,null,null,null,null,null,null,null,null,null,null,null,1.8667619023324844,39.59999999999998,22.175999999999995]
[null,null,null,null,null,null,null,null,null,null,null,null,null,null,null,null,null,1.9091883092036772,40.499999999999979,22.274999999999991]
[null,null,null,null,null,null,null,null,null,null,null,null,null,null,null,null,null,1.95161471607487,41.399999999999977,22.355999999999991]
[null,null,null,null,null,null,null,null,null,null,null,null,null,null,null,null,null,1.9940411229460628,42.299999999999976,22.41899999999999]
[null,null,null,null,null,null,null,null,null,null,null,null,null,null,null,null,null,2.0364675298172559,43.199999999999982,22.463999999999995]
[null,null,null,null,null,null,null,null,null,null,null,null,null,null,null,null,null,2.0788939366884489,44.099999999999987,22.491]
[null,null,null,null,null,null,null,null,null,null,null,null,null,null,null,null,null,2.1213203435596419,44.999999999999986,22.499999999999993]
[null,null,null,null,null,null,null,null,null,null,null,null,null,null,null,null,null,2.163746750430835,45.899999999999991,22.490999999999993]
[null,null,null,null,null,null,null,null,null,null,null,null,null,null,null,null,null,2.206173157302028,46.8,22.463999999999995]
[null,null,null,null,null,null,null,null,null,null,null,null,null,null,null,null,null,2.248599564173221,47.7,22.41899999999999]
[null,null,null,null,null,null,null,null,null,null,null,null,null,null,null,null,null,2.2910259710444141,48.6,22.355999999999991]
[null,null,null,null,null,null,null,null,null,null,null,null,null,null,null,null,null,2.3334523779156071,49.500000000000007,22.274999999999991]
[null,null,null,null,null,null,null,null,null,null,null,null,null,null,null,null,null,2.3758787847868001,50.400000000000013,22.175999999999998]
[null,null,null,null,null,null,null,null,null,null,null,null,null,null,null,null,null,2.4183051916579932,51.300000000000018,22.05899999999999]
[null,null,null,null,null,null,null,null,null,null,null,null,null,null,null,null,null,2.4607315985291862,52.200000000000017,21.923999999999989]
[null,null,null,null,null,null,null,null,null,null,null,null,null,null,null,null,null,2.5031580054003792,53.100000000000023,21.77099999999999]
[null,null,null,null,null,null,null,null,null,null,null,null,null,null,null,null,null,2.5455844122715723,54.000000000000028,21.599999999999987]
[null,null,null,null,null,null,null,null,null,null,null,null,null,null,null,null,null,2.5880108191427653,54.900000000000034,21.410999999999987]
[null,null,null,null,null,null,null,null,null,null,null,null,null,null,null,null,null,2.6304372260139584,55.800000000000033,21.203999999999986]
[null,null,null,null,null,null,null,null,null,null,null,null,null,null,null,null,null,2.6728636328851514,56.700000000000038,20.978999999999985]
[null,null,null,null,null,null,null,null,null,null,null,null,null,null,null,null,null,2.7152900397563444,{"$f":"kiirus*COS(RADIANS(nurk))*t","v":57.600000000000044},{"$f":"kiirus*SIN(RADIANS(nurk))*t-g*t*t/2","v":20.735999999999983}]
[null,null,null,null,null,null,null,null,null,null,null,null,null,null,null,null,null,{"$f":"R76+samm","v":2.7577164466275375},58.50000000000005,20.47499999999998]
[null,null,null,null,null,null,null,null,null,null,null,null,null,null,null,null,null,2.8001428534987305,59.400000000000048,20.195999999999977]
[null,null,null,null,null,null,null,null,null,null,null,null,null,null,null,null,null,2.8425692603699235,60.300000000000054,19.898999999999972]
[null,null,null,null,null,null,null,null,null,null,null,null,null,null,null,null,null,2.8849956672411166,61.20000000000006,19.583999999999968]
[null,null,null,null,null,null,null,null,null,null,null,null,null,null,null,null,null,2.9274220741123096,62.100000000000065,19.250999999999969]
[null,null,null,null,null,null,null,null,null,null,null,null,null,null,null,null,null,2.9698484809835026,63.000000000000064,18.89999999999997]
[null,null,null,null,null,null,null,null,null,null,null,null,null,null,null,null,null,3.0122748878546957,63.90000000000007,18.530999999999963]
[null,null,null,null,null,null,null,null,null,null,null,null,null,null,null,null,null,3.0547012947258887,64.800000000000068,18.14399999999997]
[null,null,null,null,null,null,null,null,null,null,null,null,null,null,null,null,null,3.0971277015970817,65.700000000000074,17.738999999999962]
[null,null,null,null,null,null,null,null,null,null,null,null,null,null,null,null,null,3.1395541084682748,66.60000000000008,17.315999999999946]
[null,null,null,null,null,null,null,null,null,null,null,null,null,null,null,null,null,3.1819805153394678,67.500000000000085,16.874999999999943]
[null,null,null,null,null,null,null,null,null,null,null,null,null,null,null,null,null,3.2244069222106608,68.400000000000091,16.41599999999994]
[null,null,null,null,null,null,null,null,null,null,null,null,null,null,null,null,null,3.2668333290818539,69.300000000000097,15.938999999999943]
[null,null,null,null,null,null,null,null,null,null,null,null,null,null,null,null,null,3.3092597359530469,70.200000000000102,15.443999999999932]
[null,null,null,null,null,null,null,null,null,null,null,null,null,null,null,null,null,3.3516861428242399,71.100000000000108,14.930999999999933]
[null,null,null,null,null,null,null,null,null,null,null,null,null,null,null,null,null,3.394112549695433,72.000000000000099,14.399999999999935]
[null,null,null,null,null,null,null,null,null,null,null,null,null,null,null,null,null,3.436538956566626,72.900000000000105,13.850999999999914]
[null,null,null,null,null,null,null,null,null,null,null,null,null,null,null,null,null,3.478965363437819,73.800000000000111,13.283999999999914]
[null,null,null,null,null,null,null,null,null,null,null,null,null,null,null,null,null,3.5213917703090121,74.700000000000117,12.69899999999992]
[null,null,null,null,null,null,null,null,null,null,null,null,null,null,null,null,null,3.5638181771802051,75.600000000000122,12.095999999999904]
[null,null,null,null,null,null,null,null,null,null,null,null,null,null,null,null,null,3.6062445840513981,76.500000000000128,11.474999999999909]
[null,null,null,null,null,null,null,null,null,null,null,null,null,null,null,null,null,3.6486709909225912,77.400000000000134,10.835999999999913]
[null,null,null,null,null,null,null,null,null,null,null,null,null,null,null,null,null,3.6910973977937842,78.300000000000139,10.178999999999903]
[null,null,null,null,null,null,null,null,null,null,null,null,null,null,null,null,null,3.7335238046649772,79.200000000000131,9.5039999999998912]
[null,null,null,null,null,null,null,null,null,null,null,null,null,null,null,null,null,3.7759502115361703,80.100000000000136,8.8109999999998649]
[null,null,null,null,null,null,null,null,null,null,null,null,null,null,null,null,null,3.8183766184073633,81.000000000000142,8.0999999999998664]
[null,null,null,null,null,null,null,null,null,null,null,null,null,null,null,null,null,3.8608030252785563,81.900000000000148,7.3709999999998672]
[null,null,null,null,null,null,null,null,null,null,null,null,null,null,null,null,null,3.9032294321497494,82.800000000000153,6.6239999999998673]
[null,null,null,null,null,null,null,null,null,null,null,null,null,null,null,null,null,3.9456558390209424,83.700000000000159,5.8589999999998668]
[null,null,null,null,null,null,null,null,null,null,null,null,null,null,null,null,null,3.9880822458921354,84.600000000000165,5.0759999999998513]
[null,null,null,null,null,null,null,null,null,null,null,null,null,null,null,null,null,4.030508652763328,85.500000000000156,4.2749999999998636]
[null,null,null,null,null,null,null,null,null,null,null,null,null,null,null,null,null,4.0729350596345206,86.400000000000148,3.4559999999998468]
[null,null,null,null,null,null,null,null,null,null,null,null,null,null,null,null,null,4.1153614665057132,87.300000000000139,2.6189999999998435]
[null,null,null,null,null,null,null,null,null,null,null,null,null,null,null,null,null,4.1577878733769058,88.200000000000145,1.7639999999998537]
[null,null,null,null,null,null,null,null,null,null,null,null,null,null,null,null,null,4.2002142802480984,89.100000000000136,0.89099999999986323]
[null,null,null,null,null,null,null,null,null,null,null,null,null,null,null,null,null,4.242640687119291,90.000000000000128,-1.2789769243681803E-13]

{"sheet":"Lisamine","index":24,"n_rows":25,"n_cols":11,"rows_kept":25,"cut":false,"hidden":false,"merged":[]}
[]
[null,"Graafikaobjektide lisamine töölehele"]
[]
[null,"AddLine - joone (lõigu) lisamine"]
[]
[null,"leht.Shapes.AddLine(x1, y1, x2, y2).Select",null,null,null,null,null,null,null,null,"NB! Select peab olema!"]
[null,"või"]
[null,"Set muutuja = leht.Shapes.AddLine(x1, y1, x2, y2)"]
[]
[null,"x1, y1, x2, y2 - otste koordinaadid (punktides)"]
[]
[null,"ActiveSheet.Shapes.AddLine(50,100,200,150).Select"]
[null,"Set joon = ActiveSheet.Shapes.AddLine(50,100,200,150)"]
[]
[null,"AddShape - erinevat tüüpi kujundite lisamine"]
[]
[null,"leht.AddShape(Type, Left, Top, Width, Height).Select"]
[null,"või"]
[null,"Set muutuja = leht.AddShape(Type, Left, Top, Width, Height)"]
[]
[null,"Type - tüüp: määratakse vastava numbri või sisekonstandi abil"]
[null,1,"msoShapeRectangle - ristkülik või ruut"]
[null,9,"msoShapeOval - ovaal või ring"]
[]
[null,"Left, Top, Width, Height - vasak, ülemine, laius, kõrgus"]

{"sheet":"D_Lisa","index":25,"n_rows":3,"n_cols":2,"rows_kept":3,"cut":false,"hidden":false,"merged":[]}
[]
[]
[null,"Graafikaobjektie lisamine. Demo"]

{"sheet":"Kujud","index":26,"n_rows":2,"n_cols":2,"rows_kept":2,"cut":false,"hidden":false,"merged":[]}
[]
[null,"Kujude loomine"]

{"sheet":"Prorseduurid","index":27,"n_rows":0,"n_cols":0,"rows_kept":0,"cut":false,"hidden":false,"merged":[]}

{"sheet":"Maja","index":28,"n_rows":0,"n_cols":0,"rows_kept":0,"cut":false,"hidden":false,"merged":[]}

{"sheet":"Kolm_Ellips","index":29,"n_rows":0,"n_cols":0,"rows_kept":0,"cut":false,"hidden":false,"merged":[]}

{"sheet":"Sheet1","index":30,"n_rows":0,"n_cols":0,"rows_kept":0,"cut":false,"hidden":false,"merged":[]}